bitfinex/quotes_BTCUSD_20251202
["timestamp","ask_amount","ask_price","bid_price","bid_amount"]
[1764681921176,0.22862754,87479.0,87476.0,0.24006367]
[1764681921523,0.0114317,87476.0,87461.0,0.07395665]
[1764681921726,0.22863936,87474.0,87467.0,0.02157]
[1764681921934,0.22863936,87474.0,87467.0,0.2502254]
[1764681922208,0.2,87480.0,87467.0,0.03300288]
[1764681922499,0.01143066,87484.0,87478.0,0.22862831]
[1764681922761,0.24004942,87482.0,87479.0,0.24005502]
[1764681922942,0.24005417,87481.0,87477.0,0.01143157]
[1764681923195,0.24005417,87481.0,87478.0,0.27221835]
[1764681923364,0.24005417,87481.0,87480.0,0.02157]
[1764681923885,0.01143066,87484.0,87480.0,0.02157]
[1764681923886,0.01143079,87483.0,87480.0,0.02157]
[1764681924082,0.22862058,87482.0,87480.0,0.02157]
[1764681924298,0.22862107,87481.0,87480.0,0.02157]
[1764681924923,0.01812,87485.0,87483.0,0.01143079]
[1764681925124,0.25816233,87485.0,87482.0,0.24004741]
[1764681925332,0.01812,87485.0,87482.0,0.24004741]
[1764681925851,0.24673125,87485.0,87482.0,0.24004741]
[1764681926033,0.22861343,87484.0,87482.0,0.24004741]
[1764681926253,0.25816178,87485.0,87482.0,0.24004741]
[1764681926474,0.24004178,87485.0,87482.0,0.24004741]
[1764681926667,0.10295454,87491.0,87484.0,0.02791]
[1764681926828,0.01812,87490.0,87487.0,0.01143026]
[1764681927032,0.24671795,87490.0,87487.0,0.24003344]
[1764681927240,0.25814782,87490.0,87487.0,0.24003344]
[1764681927447,0.24002782,87490.0,87489.0,0.02791]
[1764681927642,0.25813575,87495.0,87490.0,0.22859649]
[1764681927866,0.33154717,87492.0,87489.0,0.02791]
[1764681928066,0.22959755,87490.0,87488.0,0.22860234]
[1764681928359,0.22859755,87490.0,87487.0,0.24003344]
[1764681928564,0.0915248,87492.0,87489.0,0.24003016]
[1764681928764,0.228596,87491.0,87489.0,0.24003016]
[1764681929098,0.228596,87491.0,87489.0,0.01143]
[1764681929304,0.22859755,87490.0,87488.0,0.22860277]
[1764681929509,0.22859768,87490.0,87488.0,0.22860277]
[1764681929794,0.24002574,87491.0,87488.0,0.22860277]
[1764681930524,0.001,87490.0,87488.0,0.22860277]
[1764681931559,0.0915248,87492.0,87489.0,0.01143]
[1764681931738,0.23059717,87491.0,87488.0,0.22860277]
[1764681932184,0.22859757,87490.0,87488.0,0.22860277]
[1764681933137,0.24002691,87491.0,87488.0,0.22860277]
[1764681933377,0.001,87490.0,87488.0,0.22860277]
[1764681933932,0.24002691,87491.0,87488.0,0.22860277]
[1764681934140,0.0915248,87492.0,87490.0,0.25477731]
[1764681934341,0.24669858,87498.0,87495.0,0.22858262]
[1764681934541,0.24681161,87498.0,87497.0,0.02092]
[1764681935042,0.22869161,87498.0,87497.0,0.02092]
[1764681935695,0.00011496,87498.0,87497.0,0.08905]
[1764681936066,0.22869161,87498.0,87497.0,0.08905]
[1764681936619,0.22869161,87498.0,87497.0,0.27560926]
[1764681936620,0.00011496,87498.0,87497.0,0.27560926]
[1764681937033,0.00011496,87498.0,87497.0,0.27660926]
[1764681937263,0.00011496,87498.0,87497.0,0.31862926]
[1764681942108,0.01142609,87519.0,87514.0,0.01142674]
[1764681942330,0.01142609,87519.0,87515.0,0.0618]
[1764681942331,0.01180901,87519.0,87515.0,0.0618]
[1764681942555,0.22890472,87519.0,87518.0,0.02611]
[1764681942717,0.00038292,87519.0,87518.0,0.02611]
[1764681943180,0.22890472,87519.0,87518.0,0.02611]
[1764681943333,0.00038292,87519.0,87518.0,0.02611]
[1764681943515,0.00138292,87519.0,87518.0,0.02611]
[1764681943888,0.22890472,87519.0,87518.0,0.02611]
[1764681944091,0.00138292,87519.0,87518.0,0.02611]
[1764681944629,0.00138292,87519.0,87518.0,0.29665441]
[1764681945040,0.00138292,87519.0,87518.0,0.31947417]
[1764681945244,0.00138292,87519.0,87518.0,0.29665441]
[1764681945448,0.00138292,87519.0,87518.0,0.38199716]
[1764681945887,0.00038292,87519.0,87518.0,0.3591774]
[1764681946088,0.00038292,87519.0,87518.0,0.3601774]
[1764681946506,0.00038292,87519.0,87518.0,0.3591774]
[1764681946716,0.00038292,87519.0,87518.0,0.3611774]
[1764681946974,0.00038292,87519.0,87518.0,0.3591774]
[1764681947179,0.22890472,87519.0,87518.0,0.02611]
[1764681947389,0.00038292,87519.0,87518.0,0.002]
[1764681948038,0.00038292,87519.0,87518.0,0.003]
[1764681948457,0.00038292,87519.0,87518.0,0.002]
[1764681948657,0.22890472,87519.0,87518.0,0.002]
[1764681948855,0.00038292,87519.0,87518.0,0.29665441]
[1764681949054,0.00038292,87519.0,87518.0,0.25463441]
[1764681949746,0.00038292,87519.0,87518.0,0.02611]
[1764681950320,0.22890472,87519.0,87518.0,0.02611]
[1764681950718,0.22890472,87519.0,87515.0,0.01978]
[1764681950719,0.22852964,87516.0,87515.0,0.01978]
[1764681951164,0.23995063,87518.0,87515.0,0.08791]
[1764681951486,0.22890971,87519.0,87517.0,0.02611]
[1764681951703,0.00038292,87519.0,87518.0,0.02611]
[1764681952114,0.22890472,87519.0,87518.0,0.06813]
[1764681952325,0.22890472,87519.0,87518.0,0.02611]
[1764681952527,0.22852716,87517.0,87515.0,0.01978]
[1764681952731,0.22852716,87517.0,87515.0,0.02078]
[1764681952941,0.2289051,87519.0,87516.0,0.29665964]
[1764681953144,0.22890707,87519.0,87517.0,0.02611]
[1764681953348,0.22852441,87518.0,87517.0,0.02611]
[1764681954157,0.22852441,87518.0,87515.0,0.02078]
[1764681954158,0.22852964,87516.0,87515.0,0.02078]
[1764681954528,0.22852964,87516.0,87515.0,0.08891]
[1764681954735,0.22852964,87516.0,87515.0,0.02078]
[1764681954930,0.22852964,87516.0,87515.0,0.01978]
[1764681955777,0.22852964,87516.0,87515.0,0.04589]
[1764681956399,0.23995063,87518.0,87515.0,0.04689]
[1764681956833,0.22852964,87516.0,87515.0,0.04689]
[1764681958148,0.22852964,87516.0,87515.0,0.02078]
[1764681958357,0.22852957,87517.0,87515.0,0.04689]
[1764681959178,0.01180901,87519.0,87515.0,0.27542218]
[1764681959378,0.24033135,87519.0,87516.0,0.25463813]
[1764681959713,0.00038292,87519.0,87516.0,0.02611]
[1764681959887,0.22852186,87519.0,87517.0,0.22852616]
[1764681960182,0.2285236,87519.0,87516.0,0.07955648]
[1764681960386,0.24657853,87528.0,87520.0,0.22851916]
[1764681960563,0.23993642,87524.0,87520.0,0.23994277]
[1764681960767,0.01819481,87528.0,87527.0,0.22850091]
[1764681960768,0.00011481,87528.0,87527.0,0.22850091]
[1764681960973,0.00011481,87528.0,87527.0,0.02611]
[1764681961375,0.2399525,87518.0,87512.0,0.031207]
[1764681961555,0.23994759,87520.0,87516.0,0.01142648]
[1764681961753,0.23994759,87520.0,87517.0,0.06813]
[1764681962001,0.01142595,87520.0,87518.0,0.22852441]
[1764681962211,0.2285218,87519.0,87517.0,0.06813]
[1764681962367,0.01142595,87520.0,87517.0,0.06813]
[1764681962568,0.22852441,87518.0,87517.0,0.06813]
[1764681963734,0.22852441,87518.0,87517.0,0.02711]
[1764681964079,0.22852441,87518.0,87517.0,0.001]
[1764681964719,0.01142556,87523.0,87517.0,0.001]
[1764681964934,0.2285218,87519.0,87518.0,0.02611]
[1764681967403,0.1144248,87529.0,87518.0,0.30652043]
[1764681967572,0.01142556,87523.0,87520.0,0.01142595]
[1764681967913,0.01142543,87524.0,87518.0,0.28040843]
[1764681968019,0.23993692,87523.0,87519.0,0.2285198]
[1764681968235,0.23993692,87523.0,87519.0,0.28040589]
[1764681968463,0.23993692,87523.0,87522.0,0.05038]
[1764681969507,0.22851136,87523.0,87522.0,0.02148]
[1764681969720,0.22851136,87523.0,87488.0,0.45720277]
[1764681969721,0.22856881,87501.0,87500.0,0.02148]
[1764681969928,0.01142765,87507.0,87502.0,0.01142831]
[1764681970123,0.22856359,87503.0,87502.0,0.05038]
[1764681970553,0.23998657,87505.0,87502.0,0.05038]
[1764681970977,0.23998657,87505.0,87502.0,0.05076292]
[1764681971127,0.22856359,87503.0,87502.0,0.05076292]
[1764681971454,0.22856359,87503.0,87502.0,0.00038292]
[1764681971627,0.25146359,87503.0,87502.0,0.00038292]
[1764681971985,0.22856359,87503.0,87502.0,0.00038292]
[1764681973089,0.22856359,87503.0,87502.0,0.00138292]
[1764681974213,0.22856359,87503.0,87502.0,0.00038292]
[1764681975414,0.22856359,87503.0,87502.0,2.92e-06]
[1764681975415,0.65614538,87503.0,87502.0,2.92e-06]
[1764681975557,0.65614538,87503.0,87469.0,0.01143262]
[1764681975558,0.22864198,87473.0,87469.0,0.01143262]
[1764681975761,0.22864198,87473.0,87472.0,0.02159496]
[1764681976779,0.01143183,87475.0,87472.0,0.02159496]
[1764681976977,0.01143183,87475.0,87473.0,0.22864195]
[1764681977202,0.01143183,87475.0,87472.0,0.26267159]
[1764681977397,0.24006876,87475.0,87472.0,0.24119159]
[1764681977601,0.24006858,87475.0,87472.0,0.24119159]
[1764681977835,0.01143183,87475.0,87473.0,0.22864135]
[1764681978009,0.22863668,87476.0,87473.0,0.01243209]
[1764681978206,0.01143183,87475.0,87472.0,0.00111496]
[1764681978401,0.22864198,87473.0,87472.0,0.00111496]
[1764681978609,0.22864198,87473.0,87472.0,0.00211496]
[1764681978808,0.22864198,87473.0,87472.0,0.00111496]
[1764681979029,0.22863936,87474.0,87472.0,0.00111496]
[1764681979245,0.22863936,87474.0,87473.0,0.001]
[1764681979443,0.22863936,87474.0,87473.0,0.002]
[1764681980104,0.0114317,87476.0,87473.0,0.001]
[1764681980283,0.24006993,87475.0,87473.0,0.001]
[1764681980485,0.24005747,87480.0,87475.0,0.0289]
[1764681980689,0.01143144,87478.0,87475.0,0.0289]
[1764681980858,0.22863246,87477.0,87475.0,0.0289]
[1764681981477,0.01143118,87480.0,87476.0,0.25753413]
[1764681981816,0.22862801,87479.0,87477.0,0.0289]
[1764681982143,0.22862891,87478.0,87477.0,0.0289]
[1764681982346,0.34965762,87481.0,87476.0,0.0114317]
[1764681982556,0.22863936,87474.0,87472.0,0.02159496]
[1764681982775,0.22864198,87473.0,87472.0,0.00011496]
[1764681983432,0.11000736,87475.0,87474.0,0.0289]
[1764681984494,0.01143118,87480.0,87475.0,0.01143183]
[1764681984723,0.22863182,87477.0,87474.0,0.04046]
[1764681984955,0.24006339,87477.0,87476.0,0.0289]
[1764681985311,0.24006339,87477.0,87476.0,0.06936]
[1764681985518,0.24006134,87478.0,87476.0,0.06936]
[1764681985882,0.24006134,87478.0,87477.0,0.0289]
[1764681986863,0.0915248,87481.0,87477.0,0.26896309]
[1764681987068,0.34599669,87490.0,87485.0,0.22861033]
[1764681987273,0.56302822,87490.0,87489.0,0.05038]
[1764681987479,0.24002822,87490.0,87489.0,0.05038]
[1764681987854,0.24002822,87490.0,87489.0,0.02148]
[1764681988225,0.24002822,87490.0,87483.0,0.02148]
[1764681988226,0.22861323,87484.0,87483.0,0.02148]
[1764681988374,0.22861323,87484.0,87483.0,0.02123]
[1764681988781,0.0114304,87486.0,87483.0,0.05013]
[1764681988985,0.22861323,87484.0,87483.0,0.05013]
[1764681989162,0.0114304,87486.0,87483.0,0.05013]
[1764681989576,0.22861306,87485.0,87483.0,0.05013]
[1764681989758,0.22861061,87485.0,87483.0,0.05013]
[1764681989957,0.22861061,87485.0,87484.0,0.0289]
[1764681990448,0.22861323,87484.0,87483.0,0.001]
[1764681990606,0.22864102,87474.0,87472.0,0.02159496]
[1764681991228,0.24006894,87475.0,87472.0,0.02159496]
[1764681991586,0.24006894,87475.0,87472.0,0.25023935]
[1764681991921,0.22863997,87474.0,87472.0,0.02159496]
[1764681992121,0.22864198,87473.0,87472.0,0.02159496]
[1764681992336,0.24006866,87475.0,87472.0,0.25023887]
[1764681992337,0.01143183,87475.0,87472.0,0.25023887]
[1764681992559,0.01143183,87475.0,87474.0,0.0289]
[1764681992771,0.24006858,87475.0,87474.0,0.0289]
[1764681994349,0.24006858,87475.0,87474.0,0.0299]
[1764681995560,0.01808,87482.0,87479.0,0.01143131]
[1764681995792,0.01808,87482.0,87481.0,0.04827]
[1764681995991,0.24669845,87482.0,87481.0,0.02032]
[1764681996408,0.01808,87482.0,87481.0,0.24894107]
[1764681996574,0.01808,87482.0,87481.0,0.02032]
[1764681996787,0.25811521,87488.0,87482.0,0.22861758]
[1764681996943,0.24003521,87488.0,87486.0,0.02795]
[1764681997154,0.01143013,87488.0,87487.0,0.04071]
[1764681997356,0.2400329,87488.0,87487.0,0.06866]
[1764681997552,0.22860277,87488.0,87487.0,0.06866]
[1764681997759,0.323,87498.0,87496.0,0.22858118]
[1764681998056,0.22858575,87495.0,87493.0,0.02086]
[1764681998260,0.323,87498.0,87494.0,0.02705]
[1764681998648,0.22857665,87498.0,87497.0,0.02705]
[1764681998850,0.22857635,87499.0,87497.0,0.02705]
[1764681999198,0.22857665,87498.0,87497.0,0.02705]
[1764681999604,0.22858449,87495.0,87493.0,0.02086]
[1764681999828,0.01142909,87496.0,87493.0,0.02086]
[1764681999829,0.22858276,87496.0,87494.0,0.22858505]
[1764682000030,0.0114287,87499.0,87494.0,0.2400144]
[1764682000228,0.24000371,87499.0,87495.0,0.22858427]
[1764682000454,0.24000798,87498.0,87495.0,0.01142922]
[1764682000619,0.22858187,87496.0,87493.0,0.02086]
[1764682000815,0.2285871,87494.0,87493.0,0.02086]
[1764682001071,0.2400059,87498.0,87494.0,0.22858476]
[1764682001268,0.2400059,87498.0,87494.0,0.22858695]
[1764682001269,0.22857782,87498.0,87494.0,0.22858695]
[1764682001451,0.22858379,87496.0,87493.0,0.03228948]
[1764682001647,0.24001288,87496.0,87493.0,0.03228948]
[1764682001847,0.01142896,87497.0,87494.0,0.24001482]
[1764682002185,0.0114287,87499.0,87496.0,0.22858077]
[1764682002822,0.2400035,87499.0,87496.0,0.22858077]
[1764682003323,0.22856322,87504.0,87496.0,0.24000835]
[1764682003523,0.01142752,87508.0,87504.0,0.04791]
[1764682003524,0.01808,87508.0,87504.0,0.04791]
[1764682003725,0.02950752,87508.0,87507.0,0.02705]
[1764682004022,0.25805805,87508.0,87507.0,0.02705]
[1764682004167,0.24663053,87508.0,87507.0,0.02705]
[1764682004609,0.24663053,87508.0,87507.0,0.06699]
[1764682004851,0.01908,87508.0,87507.0,0.06699]
[1764682005035,0.22955053,87508.0,87507.0,0.06699]
[1764682005442,0.22955053,87508.0,87507.0,0.02705]
[1764682006352,0.001,87508.0,87507.0,0.02705]
[1764682007200,0.001,87508.0,87507.0,0.25560314]
[1764682007403,0.001,87508.0,87507.0,0.29554314]
[1764682007619,0.23996946,87512.0,87508.0,0.23997577]
[1764682007824,0.22854359,87511.0,87510.0,0.02086]
[1764682008233,0.01142687,87513.0,87510.0,0.08785]
[1764682008438,0.01142687,87513.0,87511.0,0.02705]
[1764682008886,0.22854036,87512.0,87511.0,0.02705]
[1764682009298,0.01808,87515.0,87511.0,0.25559185]
[1764682009451,0.2399497,87519.0,87513.0,0.267012]
[1764682009649,0.01142595,87520.0,87513.0,0.267012]
[1764682009650,0.23994704,87520.0,87519.0,0.04791]
[1764682010839,0.23994704,87520.0,87519.0,0.02086]
[1764682010984,0.24094704,87520.0,87519.0,0.02086]
[1764682013458,0.001,87520.0,87519.0,0.08785]
[1764682013722,0.001,87520.0,87519.0,0.3163718]
[1764682015318,0.001,87520.0,87519.0,0.08785]
[1764682015519,0.001,87520.0,87519.0,0.3163718]
[1764682016450,0.001,87520.0,87519.0,0.33919156]
[1764682016653,0.001,87520.0,87519.0,0.08785]
[1764682016854,0.001,87520.0,87519.0,0.3163718]
[1764682017213,0.23992839,87527.0,87522.0,0.2399375]
[1764682017414,0.00038292,87527.0,87526.0,0.02086]
[1764682017623,0.00038292,87527.0,87526.0,0.04791]
[1764682017823,0.22888383,87527.0,87526.0,0.04791]
[1764682018022,0.22888383,87527.0,87526.0,0.08785]
[1764682018224,0.00038292,87527.0,87526.0,0.08785]
[1764682018429,0.00038292,87527.0,87526.0,0.04791]
[1764682018649,0.22888383,87527.0,87526.0,0.04791]
[1764682018899,0.22888383,87527.0,87526.0,0.02086]
[1764682019614,0.01142543,87524.0,87521.0,0.22851615]
[1764682019813,0.23993112,87526.0,87522.0,0.23993894]
[1764682020084,0.23993368,87525.0,87521.0,0.23994197]
[1764682020241,0.23993368,87525.0,87521.0,0.27988197]
[1764682020242,0.22851081,87524.0,87521.0,0.27988197]
[1764682020442,0.22850966,87524.0,87521.0,0.27988197]
[1764682020617,0.01142687,87513.0,87510.0,0.02086]
[1764682020818,0.01142635,87517.0,87510.0,0.02086]
[1764682021043,0.01142687,87513.0,87510.0,0.02086]
[1764682021245,0.22854269,87511.0,87510.0,0.02086]
[1764682021651,0.01142687,87513.0,87508.0,0.01142752]
[1764682021652,0.23996532,87513.0,87508.0,0.01142752]
[1764682021899,0.23997468,87510.0,87505.0,0.23998435]
[1764682022103,0.22855575,87506.0,87505.0,0.06252299]
[1764682022657,0.22855575,87506.0,87492.0,0.01142961]
[1764682022658,0.22857142,87500.0,87496.0,0.02086]
[1764682022910,0.22857926,87497.0,87496.0,0.02086]
[1764682023115,0.01808,87506.0,87496.0,0.03228909]
[1764682023295,0.22857926,87497.0,87496.0,0.02086]
[1764682024039,0.22857926,87497.0,87488.0,0.02086]
[1764682024040,0.22859821,87490.0,87488.0,0.02086]
[1764682024265,0.22859821,87490.0,87488.0,0.02097496]
[1764682024609,0.01142935,87494.0,87488.0,0.02097496]
[1764682024814,0.22860016,87489.0,87488.0,0.02097496]
[1764682025461,0.22860016,87489.0,87488.0,0.00311496]
[1764682025617,0.24002471,87491.0,87488.0,0.00011496]
[1764682025823,0.24001161,87496.0,87490.0,0.04695]
[1764682026079,0.01142935,87494.0,87491.0,0.01142974]
[1764682026278,0.24001675,87494.0,87491.0,0.24002413]
[1764682026511,0.01142948,87493.0,87491.0,0.0377]
[1764682026688,0.24001649,87494.0,87493.0,0.02724]
[1764682027103,0.01142922,87495.0,87493.0,0.02724]
[1764682027306,0.24001484,87495.0,87493.0,0.02724]
[1764682027542,0.01142922,87495.0,87493.0,0.02724]
[1764682027763,0.2285871,87494.0,87493.0,0.02724]
[1764682028171,0.24001402,87495.0,87493.0,0.02724]
[1764682028382,0.01142909,87496.0,87494.0,0.02724]
[1764682028586,0.01142922,87495.0,87494.0,0.02724]
[1764682029058,0.24001402,87495.0,87494.0,0.02724]
[1764682029718,0.25808583,87498.0,87494.0,0.02724]
[1764682029936,0.25808557,87498.0,87494.0,0.26825642]
[1764682030154,0.24000847,87497.0,87494.0,0.03966935]
[1764682030454,0.01808,87498.0,87494.0,0.26825587]
[1764682030612,0.2400107,87497.0,87494.0,0.03966935]
[1764682030813,0.22858449,87495.0,87494.0,0.02724]
[1764682031217,0.22859006,87493.0,87491.0,0.01142974]
[1764682031739,0.22859006,87493.0,87490.0,0.24830752]
[1764682032100,0.22859006,87493.0,87490.0,0.25973739]
[1764682032364,0.22859006,87493.0,87491.0,0.001]
[1764682032579,0.22859232,87492.0,87491.0,0.001]
[1764682032769,0.24001954,87493.0,87490.0,0.24830541]
[1764682032967,0.01142935,87494.0,87491.0,0.22859431]
[1764682033143,0.24001662,87494.0,87491.0,0.22859431]
[1764682033325,0.24001674,87494.0,87491.0,0.24002405]
[1764682033509,0.01142935,87494.0,87492.0,0.22859204]
[1764682033959,0.01142948,87493.0,87490.0,0.02071]
[1764682034181,0.24002082,87493.0,87490.0,0.24930505]
[1764682034400,0.22859261,87492.0,87490.0,0.02071]
[1764682034599,0.22859494,87491.0,87490.0,0.01971]
[1764682035188,0.22859261,87492.0,87490.0,0.01971]
[1764682035377,0.22859261,87492.0,87490.0,0.02071]
[1764682035836,0.24001946,87493.0,87490.0,0.24930656]
[1764682036067,0.24001946,87493.0,87490.0,0.26173643]
[1764682036281,0.22858457,87495.0,87491.0,0.24002414]
[1764682037208,0.22858457,87495.0,87492.0,0.2400196]
[1764682037402,0.01142909,87496.0,87493.0,0.24001834]
[1764682037603,0.01142909,87496.0,87493.0,0.01142948]
[1764682037861,0.24001098,87496.0,87493.0,0.24001897]
[1764682038031,0.22858492,87495.0,87493.0,0.01142948]
[1764682038393,0.22858756,87494.0,87491.0,0.27771987]
[1764682038599,0.22858972,87493.0,87491.0,0.0377]
[1764682038825,0.2400192,87493.0,87490.0,0.03113987]
[1764682039808,0.2400192,87493.0,87490.0,0.25973501]
[1764682040321,0.22859258,87492.0,87490.0,0.03113987]
[1764682040724,0.24002468,87491.0,87488.0,0.00011496]
[1764682040948,0.22860016,87489.0,87488.0,0.00011496]
[1764682042032,0.32012496,87489.0,87488.0,0.00011496]
[1764682042240,0.32012496,87489.0,87488.0,0.00111496]
[1764682043142,0.34302496,87489.0,87488.0,0.00111496]
[1764682045784,0.32012496,87489.0,87488.0,0.00111496]
[1764682050768,0.01142948,87493.0,87488.0,0.00111496]
[1764682050769,0.0114287,87499.0,87490.0,0.01142987]
[1764682050966,0.24666393,87496.0,87492.0,0.01142961]
[1764682051144,0.24001302,87496.0,87492.0,0.24002177]
[1764682051348,0.24001302,87496.0,87495.0,0.04695]
[1764682052896,0.01142765,87507.0,87498.0,0.01142883]
[1764682053122,0.01808,87504.0,87500.0,0.01142857]
[1764682053480,0.24664162,87504.0,87501.0,0.2285668]
[1764682053688,0.01808,87504.0,87502.0,0.2285648]
[1764682053868,0.01808,87504.0,87502.0,0.22856586]
[1764682054250,0.01808,87504.0,87501.0,0.23999524]
[1764682054526,0.01808,87504.0,87502.0,0.22856473]
[1764682054682,0.01808,87504.0,87503.0,0.22856359]
[1764682054890,0.002,87505.0,87504.0,0.22856098]
[1764682055118,0.002,87505.0,87504.0,0.29649098]
[1764682055948,0.22853077,87516.0,87509.0,0.01142739]
[1764682056130,0.01142635,87517.0,87513.0,0.22853526]
[1764682056131,0.23995471,87517.0,87513.0,0.22853526]
[1764682056503,0.22852702,87517.0,87516.0,0.02762]
[1764682056820,0.22852964,87516.0,87515.0,0.01938]
[1764682057550,0.22853593,87514.0,87511.0,0.01142713]
[1764682057756,0.2,87530.0,87512.0,0.03979]
[1764682057961,0.01142556,87523.0,87517.0,0.01142635]
[1764682058172,0.01142556,87523.0,87517.0,0.05121635]
[1764682058340,0.01142569,87522.0,87518.0,0.23994827]
[1764682058526,0.01142543,87524.0,87519.0,0.01142609]
[1764682058731,0.01142569,87522.0,87518.0,0.05121622]
[1764682058932,0.22851925,87520.0,87518.0,0.03979]
[1764682059323,0.22852183,87519.0,87517.0,0.01142635]
[1764682059511,0.22852718,87517.0,87515.0,0.01938]
[1764682059734,0.01142622,87518.0,87515.0,0.25933875]
[1764682059900,0.22852782,87517.0,87515.0,0.01938]
[1764682060607,0.01142595,87520.0,87517.0,0.01142635]
[1764682060813,0.23994773,87520.0,87516.0,0.22852964]
[1764682061378,0.23994832,87519.0,87516.0,0.01142648]
[1764682061882,0.01142622,87518.0,87515.0,0.2593384]
[1764682062086,0.23994832,87519.0,87516.0,0.22852881]
[1764682062346,0.22851883,87521.0,87517.0,0.23995099]
[1764682062495,0.23994465,87521.0,87517.0,0.23995099]
[1764682062674,0.00207413,87518.0,87517.0,0.01142635]
[1764682063710,0.00207413,87518.0,87517.0,0.02762]
[1764682063922,0.23059854,87518.0,87517.0,0.02762]
[1764682064938,0.22852702,87517.0,87515.0,0.01938]
[1764682065247,0.23995085,87518.0,87515.0,0.03080661]
[1764682065398,0.01142622,87518.0,87516.0,0.22852923]
[1764682065602,0.01142622,87518.0,87515.0,0.01938]
[1764682066025,0.23997014,87511.0,87505.0,0.01938]
[1764682066226,0.011427,87512.0,87508.0,0.03080752]
[1764682066634,0.2399688,87512.0,87509.0,0.01142739]
[1764682066989,0.2399688,87512.0,87508.0,0.259358]
[1764682067180,0.2399688,87512.0,87508.0,0.260358]
[1764682067394,0.22854599,87510.0,87508.0,0.260358]
[1764682067558,0.22854792,87509.0,87508.0,0.02038]
[1764682069206,0.22855368,87507.0,87505.0,0.01938]
[1764682069419,0.22855098,87508.0,87505.0,0.24793629]
[1764682069834,0.22855118,87508.0,87505.0,0.25936126]
[1764682069984,0.22855118,87508.0,87505.0,0.01938]
[1764682069985,0.22855575,87506.0,87505.0,0.01938]
[1764682070191,0.22855575,87506.0,87505.0,0.02038]
[1764682070415,0.22855575,87506.0,87505.0,0.001]
[1764682070625,0.22855575,87506.0,87505.0,0.002]
[1764682070816,0.23025514,87506.0,87503.0,0.01142817]
[1764682071033,0.22855575,87506.0,87505.0,0.001]
[1764682071350,0.22855575,87506.0,87505.0,0.002]
[1764682071748,0.22855575,87506.0,87505.0,0.00141372]
[1764682072458,0.01142765,87507.0,87495.0,0.01971]
[1764682072459,0.01142844,87501.0,87495.0,0.01971]
[1764682072610,0.01142961,87492.0,87488.0,0.01938]
[1764682072814,0.24002212,87492.0,87488.0,0.01938]
[1764682073017,0.24001827,87494.0,87491.0,0.25621286]
[1764682073212,0.24001827,87494.0,87492.0,0.22859183]
[1764682073422,0.22858208,87496.0,87492.0,0.22859183]
[1764682073423,0.22858509,87495.0,87492.0,0.22859183]
[1764682073825,0.22858602,87495.0,87492.0,0.24002144]
[1764682074021,0.22858602,87495.0,87494.0,0.01938]
[1764682074662,0.22860016,87489.0,87488.0,0.001]
[1764682074982,0.24668016,87489.0,87488.0,0.001]
[1764682075559,0.24668016,87489.0,87477.0,0.10231299]
[1764682075560,0.22861061,87485.0,87477.0,0.10231299]
[1764682075798,0.22862368,87480.0,87479.0,0.08190299]
[1764682076078,0.22862368,87480.0,87479.0,0.01938]
[1764682076683,0.22862368,87480.0,87474.0,0.03081196]
[1764682076684,0.21143118,87480.0,87474.0,0.03081196]
[1764682076886,0.2286291,87478.0,87475.0,0.24006598]
[1764682077150,0.22863269,87477.0,87474.0,0.25945132]
[1764682077352,0.22863613,87476.0,87474.0,0.01938]
[1764682077670,0.22863675,87475.0,87474.0,0.01938]
[1764682078675,0.24006309,87477.0,87474.0,0.047]
[1764682078877,0.22863675,87475.0,87474.0,0.047]
[1764682079119,0.22863675,87475.0,87474.0,0.049]
[1764682079491,0.22863675,87475.0,87474.0,0.047]
[1764682079672,0.22863675,87475.0,87474.0,0.049]
[1764682080137,0.22863675,87475.0,87474.0,0.048]
[1764682080344,0.22863675,87475.0,87474.0,0.05]
[1764682080493,0.01143131,87479.0,87474.0,0.05]
[1764682080494,0.21142726,87510.0,87502.0,0.01142831]
[1764682080705,0.21142726,87510.0,87499.0,0.0114287]
[1764682080706,0.2285584,87505.0,87503.0,0.01938]
[1764682081066,0.23999957,87501.0,87496.0,0.2400085]
[1764682081189,0.01142831,87502.0,87497.0,0.01142896]
[1764682081547,0.22858971,87493.0,87492.0,0.01938]
[1764682081754,0.01142948,87493.0,87491.0,0.22859477]
[1764682081951,0.22858391,87496.0,87492.0,0.24001961]
[1764682082140,0.0915248,87494.0,87492.0,0.24001961]
[1764682082522,0.0915248,87494.0,87493.0,0.22858971]
[1764682082728,0.0915248,87494.0,87491.0,0.24002429]
[1764682082933,0.0915248,87494.0,87493.0,0.22858971]
[1764682083125,0.0915248,87494.0,87490.0,0.03080987]
[1764682083382,0.0915248,87494.0,87493.0,0.22858971]
[1764682083786,0.0915248,87494.0,87491.0,0.24002459]
[1764682084019,0.0915248,87494.0,87493.0,0.22858971]
[1764682084894,0.0915248,87494.0,87492.0,0.22859029]
[1764682085093,0.0915248,87494.0,87493.0,0.22858971]
[1764682087629,0.0915248,87494.0,87493.0,0.29766971]
[1764682088322,0.2,87500.0,87493.0,0.06908]
[1764682088524,0.0915248,87495.0,87493.0,0.25648967]
[1764682088696,0.32010962,87495.0,87493.0,0.0279]
[1764682088894,0.01142974,87491.0,87488.0,0.01938]
[1764682089100,0.2400261,87491.0,87488.0,0.01938]
[1764682089300,0.22859755,87490.0,87488.0,0.01938]
[1764682089501,0.2400261,87491.0,87488.0,0.01938]
[1764682089913,0.22859192,87494.0,87491.0,0.22859478]
[1764682090231,0.22859192,87494.0,87490.0,0.01142987]
[1764682090232,0.22858981,87493.0,87490.0,0.01142987]
[1764682090435,0.22858981,87493.0,87490.0,0.24002653]
[1764682090807,0.24002157,87494.0,87491.0,0.22859287]
[1764682090979,0.22859188,87493.0,87490.0,0.2400261]
[1764682091378,0.24002157,87494.0,87491.0,0.22859269]
[1764682091581,0.22859037,87493.0,87491.0,0.22859465]
[1764682091780,0.33153876,87495.0,87492.0,0.22859232]
[1764682091979,0.22858757,87494.0,87491.0,0.24002439]
[1764682092174,0.01142935,87494.0,87490.0,0.24002693]
[1764682092354,0.24002148,87493.0,87490.0,0.24002693]
[1764682092562,0.22860016,87489.0,87488.0,0.01938]
[1764682092783,0.0114304,87486.0,87481.0,0.01938]
[1764682093003,0.0114304,87486.0,87482.0,0.22861739]
[1764682093330,0.22861117,87485.0,87482.0,0.24004831]
[1764682093538,0.01143053,87485.0,87481.0,0.01938]
[1764682093698,0.22861845,87482.0,87481.0,0.01938]
[1764682093903,0.2400417,87485.0,87481.0,0.03081105]
[1764682094097,0.01142987,87490.0,87484.0,0.0279]
[1764682094288,0.24003391,87488.0,87484.0,0.26794377]
[1764682094484,0.22860871,87486.0,87484.0,0.03933066]